[Event "Frauenbundesliga 2021-22"]
[Site "Germany"]
[Date "2022.05.28"]
[Round "10.28"]
[White "Javakhishvili, Lela"]
[Black "Stefanova, Antoaneta"]
[Result "0-1"]
[ECO "D30"]
[WhiteElo "2480"]
[BlackElo "2458"]
[Annotator "TA"]
[PlyCount "70"]
[EventDate "2021.11.26"]
[EventType "team-tourn"]
[EventCountry "GER"]
[SourceTitle "playchess.com"]
[Source "ChessBase"]
[SourceQuality "1"]
[WhiteTeam "Schwaebisch Hall"]
[BlackTeam "Baden-Baden"]
[TimeControl "40/5400+30:1800+30"]

{[%evp 10,70,18,17,12,0,12,9,33,-64,-44,-53,-55,-56,-53,-53,-62,-56,-66,-48,-54,-53,-42,-45,0,-387,-232,-242,-232,-480,-501,-565,-539,-758,-747,-946,-928,-972,-925,-929,-916,-916,-902,-913,-916,-921,-921,-968,-964,-1570,-1422,-1554,-1505,-2387,-2222,-29960,-1287,-29981,-29981,-29985,-29986,-29992,-29993]} 1. d4 {[%emt 0:00:03]} d5 {[%emt 0:00:07]} 2. c4 {[%emt 0:00:07]} c6 {[%emt 0:00:06]} 3. Nf3 {[%emt 0:00:07]} e6 {[%emt 0:00:27]} 4. Qc2 {[%emt 0:00:17]} dxc4 {[%emt 0:00:24]} 5. Qxc4 {[%emt 0:00:06]} Nf6 {[%emt 0:00:06]} 6. Bg5 {[%emt 0:00:06]} Nbd7 {[%emt 0:00:09][%cal Oe6e5] D30: Queen's Gambit Declined: Systems without Nc3.} 7. Nc3 {[%emt 0:01:12]} h6 {[%emt 0:03:40]} 8. Bh4 {[%emt 0:06:57]} Qb6 {[%emt 0:01:30] [#] The position is equal.} 9. e4 $146 {[%emt 0:02:05]} (9. Rb1 $14) ({Predecessor:} 9. Rb1 Bb4 10. a3 Bxc3+ 11. Qxc3 O-O 12. e3 Nd5 13. Qd2 c5 14. e4 N5f6 15. e5 {1-0 (34) Sanikidze,T (2426)-Burmakin,V (2593) Baku 2007}) 9... Qxb2 $15 {[%emt 0:05:08]} (9... g5 10. Bg3 $11) 10. Rb1 {[%emt 0:00:05]} Qa3 {[%emt 0:00:10]} 11. Be2 {[%emt 0:00:19][%cal Bf1e2,Be2d1,Bd1c2][%mdl 32]} Nb6 $36 {[%emt 0:10:25][%mdl 2048] Black has good play.} 12. Qd3 {[%emt 0:04:16]} Bb4 {[%emt 0:05:28]} 13. Rb3 {[%emt 0:00:25]} Qc1+ {[%emt 0:09:56]} 14. Bd1 {[%emt 0:00:14] [#]} Nxe4 $1 {[%emt 0:03:56][%cal Rb4c3]} 15. O-O $1 {[%emt 0:01:08]} Nxc3 {[%emt 0:02:50]} (15... Bxc3 $2 16. Qxe4 Nd5 17. g3 $18 (17. Bc2 Qf4 $11)) 16. Bc2 $1 {[%emt 0:02:36]} Nxa2 {[%emt 0:10:06] aiming for ...Qf4.} (16... Qf4 $5 {[%cal Rc3d5]} 17. Rxb4 Nbd5 $15) 17. d5 $2 {[%emt 0:09:56][%mdl 8192] [#] Black keeps a firm grip on the game.} ({But not} 17. Rxc1 $2 Nxc1 18. Qe3 Nxb3 19. Qxb3 Nd5 $19) (17. Qe4 $1 $11 {and White is okay.} a5 18. Ne5 (18. Rxc1 Nxc1 19. Rb1 Na2 $15)) 17... Qf4 {[%emt 0:18:30]} (17... Nxd5 $142 $1 18. Bg3 {[#]} h5 $1 19. Rxc1 Nxc1) 18. dxc6 $19 {[%emt 0:01:30][%csl Gh4][%cal Rd3d8]} Qd6 {[%emt 0:03:49] Inhibits Qd8+.} ({Much less strong is} 18... Nd5 19. cxb7 Bxb7 20. Bg3 $18) 19. Nd4 $2 {[%emt 0:11:23]} (19. Qxd6 Bxd6 20. Be4) 19... bxc6 {[%emt 0:04:55]} 20. Qe4 {[%emt 0:02:03]} Nc3 {[%emt 0:03:24][%cal Ba2c3,Bc3e2,Be2f4][%mdl 32]} 21. Qg4 {[%emt 0:05:35]} g5 {[%emt 0:07:37]} 22. Nxc6 {[%emt 0:05:42]} Qxc6 {[%emt 0:01:39]} 23. Qxb4 {[%emt 0:04:13] [#]} Bb7 $1 {[%emt 0:01:50][%csl Gb7][%cal Rc6g2]} 24. f3 {[%emt 0:01:09]} Ne2+ {[%emt 0:00:31]} 25. Kh1 {[%emt 0:00:53]} Qxc2 {[%emt 0:00:06]} 26. Bf2 {[%emt 0:01:20]} Nf4 {[%emt 0:01:59]} 27. Ra3 {[%emt 0:03:17]} Qe2 {[%emt 0:01:04]} 28. Kg1 {[%emt 0:00:08]} Qc4 {[%emt 0:01:39]} 29. Qd6 {[%emt 0:01:13]} Ne2+ {[%emt 0:01:16]} 30. Kh1 {[%emt 0:00:01] [#]} Ng3+ $1 {[%emt 0:00:08]} 31. hxg3 {[%emt 0:00:05]} (31. Qxg3 Qxf1+) 31... Qxf1+ {[%emt 0:00:04]} 32. Bg1 {[%emt 0:00:02]} g4 {[%emt 0:01:26]} (32... Rd8 $142 33. Qxd8+ Kxd8 34. Kh2 Kc7 35. Bd4 Rd8 36. Be5+ Kc6 37. Ra1 Qe2 38. Bc3 Qc2 39. Be5 Nc4 40. Rg1 Nxe5 41. Kh1 Rd1 42. g4 Rxg1+ 43. Kxg1 Ba6 44. Kh1 Bf1 45. Kh2 Qxg2#) 33. Re3 {[%emt 0:02:45]} Bd5 {[%emt 0:00:49] Black mates.} ({Stronger than} 33... gxf3 34. Rxe6+ fxe6 35. Qxe6+ Kf8 36. Qf6+ Kg8 37. Qg6+ Kf8 38. Qf6+ Kg8 39. Qg6+ Kf8 40. Qf6+ $11) 34. Kh2 {[%emt 0:01:33]} gxf3 {[%emt 0:00:23]} 35. gxf3 {[%emt 0:00:59]} Rc8 {[%emt 0:00:34] Weighted Error Value: White=0.70/Black=0.13 (very precise)} 0-1

[Event "Frauenbundesliga 2021-22"]
[Site "Germany"]
[Date "2022.05.28"]
[Round "10.29"]
[White "Salimova, Nurgyul"]
[Black "Arabidze, Meri"]
[Result "1/2-1/2"]
[ECO "A46"]
[WhiteElo "2418"]
[BlackElo "2436"]
[Annotator "TA"]
[PlyCount "120"]
[EventDate "2021.11.26"]
[EventType "team-tourn"]
[EventCountry "GER"]
[SourceTitle "playchess.com"]
[Source "ChessBase"]
[SourceQuality "1"]
[WhiteTeam "Baden-Baden"]
[BlackTeam "Schwaebisch Hall"]
[TimeControl "40/5400+30:1800+30"]

{[%evp 12,120,0,13,-16,-20,-12,-14,-16,-22,-8,-10,0,-18,0,0,0,-4,0,0,12,0,0,0,25,34,33,-21,-19,-13,-16,-8,-9,-9,-8,-17,0,0,0,0,0,-8,0,0,0,0,0,0,0,-14,0,0,32,0,0,0,0,0,0,0,16,14,56,38,42,47,52,60,126,182,191,134,158,111,113,107,161,147,232,231,263,254,248,240,241,265,245,260,222,0,0,0,0,0,0,0,0,0,0,0,0,0,0,0,0,0,0,0,0,0,0]} 1. d4 {[%emt 0:00:03]} Nf6 {[%emt 0:00:16]} 2. Nf3 {[%emt 0:00:09]} e6 {[%emt 0:00:45]} 3. g3 {[%emt 0:00:16]} b5 {[%emt 0:01:34]} 4. Bg2 {[%emt 0:00:14]} Bb7 {[%emt 0:00:05]} 5. O-O {[%emt 0:00:47]} Be7 {[%emt 0:00:16]} 6. a4 {[%emt 0:00:56]} b4 {[%emt 0:00:54]} 7. c4 {[%emt 0:00:29]} bxc3 {[%emt 0:05:17] A46: 1 d4 Nf6 2 Nf3 e6: Torre, London and Colle Systems.} 8. Nxc3 {[%emt 0:00:09]} Na6 {[%emt 0:02:39]} 9. Bf4 {[%emt 0:02:30]} O-O {[%emt 0:02:40]} 10. Rc1 {[%emt 0:01:24] [#]} Nh5 $146 {[%emt 0:04:59]} ({Predecessor:} 10... d6 11. Re1 Ne4 12. Nd2 Nxc3 13. bxc3 Bxg2 14. Kxg2 c5 15. e4 cxd4 16. cxd4 Nb4 17. Nc4 d5 18. Ne5 dxe4 19. Rxe4 {0-1 (38) Fernandez Cueto,R (1964)-Vigil Alvarez,L (2291) Oviedo 2008}) 11. Bd2 {[%emt 0:02:53]} Nf6 {[%emt 0:01:12]} 12. Bf4 {[%emt 0:00:21]} Nh5 {[%emt 0:03:22]} 13. Bd2 {[%emt 0:00:07]} Nf6 {[%emt 0:02:37]} 14. Nb5 {[%emt 0:02:35]} Be4 {[%emt 0:06:39]} 15. Ba5 {[%emt 0:03:15][%cal Rb5c7]} Nd5 {[%emt 0:04:23]} 16. Ne5 {[%emt 0:01:14]} Bxg2 {[%emt 0:00:48]} 17. Kxg2 {[%emt 0:00:06]} f6 {[%emt 0:12:21]} 18. Nd3 {[%emt 0:01:48]} f5 {[%emt 0:01:34]} 19. Nf4 {[%emt 0:03:53]} ({White should try} 19. Nc3 $14 Nab4 20. Bxb4 Nxb4 21. Nxb4 Bxb4 22. d5) 19... Bb4 $11 {[%emt 0:05:45]} 20. Nxd5 {[%emt 0:03:35]} Bxa5 {[%emt 0:00:32]} 21. Nf4 {[%emt 0:00:47]} c6 {[%emt 0:02:29] Prevents d5.} 22. Na3 {[%emt 0:01:04][%cal Bb5a3,Ba3c4,Bc4e5][%mdl 32]} Nb4 {[%emt 0:01:43]} 23. Nd3 {[%emt 0:07:47]} Nd5 {[%emt 0:02:37]} 24. e3 {[%emt 0:01:31]} Rb8 {[%emt 0:01:45]} 25. Nc4 {[%emt 0:00:45]} Bb4 {[%emt 0:00:04]} 26. h4 {[%emt 0:01:14]} Qe7 {[%emt 0:03:52]} 27. Qe2 {[%emt 0:01:51]} Nf6 {[%emt 0:04:10]} 28. Nce5 {[%emt 0:09:29]} Bd6 {[%emt 0:03:49]} 29. Rc2 {[%emt 0:03:56]} Nd5 {[%emt 0:04:42]} 30. Rfc1 {[%emt 0:06:01]} Qd8 {[%emt 0:06:08]} 31. Qd2 {[%emt 0:03:42]} Bxe5 32. Nxe5 Rb4 {[%emt 0:03:06]} 33. Rc4 {[%emt 0:03:38]} Rb7 {[%emt 0:02:48]} 34. Nd3 {[%emt 0:09:03]} Nb6 {[%emt 0:06:33]} 35. Rb4 {[%emt 0:01:07]} Rb8 {[%emt 0:02:53]} 36. Nc5 {[%emt 0:01:01]} Qe7 {[%emt 0:00:23]} 37. Na6 $36 {[%emt 0:03:45][%mdl 2048] White has some pressure.} Rbd8 {[%emt 0:00:23]} 38. a5 {[%emt 0:01:23]} Nd5 {[%emt 0:00:01]} 39. Rb7 {[%emt 0:00:12]} g5 {[%emt 0:01:22]} (39... f4 $1 $14) 40. hxg5 $16 {[%emt 0:00:23]} (40. Rxa7 gxh4 41. Nc7 Nf6 $17) 40... Qxg5 {[%emt 0:00:19]} 41. Nc5 $1 {[%emt 0:34:17]} Rf7 {[%emt 0:07:55]} 42. Nd3 {[%emt 0:00:00]} (42. Rxa7 $142 {Strongly threatening Nd3.} Rg7 43. a6) 42... a6 {[%emt 0:01:56]} 43. Nf4 {[%emt 0:00:00]} Nxf4+ {[%emt 0:04:07]} (43... Qg4 $16 {was worth a try.}) 44. exf4 $18 {[%emt 0:00:00]} Qg4 {[%emt 0:02:17]} (44... Qf6 $16 45. Ra7 h5) 45. Ra7 {[%emt 0:00:00]} Rg7 {[%emt 0:00:30]} 46. Rxa6 {[%emt 0:00:00] aiming for Rb6.} h5 {[%emt 0:00:05][%cal Bh7h5,Bh5h4][%mdl 32]} 47. Qe3 {[%emt 0:00:00]} h4 {[%emt 0:00:53]} 48. Rh1 {[%emt 0:00:00]} Rh7 {[%emt 0:04:19]} 49. Rh3 {[%emt 0:00:07]} Qd1 {[%emt 0:01:51] [#]} 50. Rb6 $2 {[%emt 0:02:40]} (50. Rxh4 $2 Rxh4 51. gxh4 Kf7 $19) (50. Ra7 $1 $18) 50... hxg3 $1 $11 {[%emt 0:02:24] ( -> ...Rxh3). The position is equal.} 51. Rxh7 {[%emt 0:02:15] Dancing on a razor blade.} (51. Qxg3+ $2 Rg7 52. Rb3 Qxd4 $19) 51... Kxh7 {[%emt 0:01:07]} 52. fxg3 {[%emt 0:06:35][%mdl 4096] Endgame KQR-KQR} Rh8 {[%emt 0:00:34]} 53. Qe5 $1 {[%emt 0:06:46]} ({Not} 53. Rb7 $2 Kg6 54. Qg1 Qe2+ 55. Qf2 {[#]} Rh2+ $3 {[%mdl 512]} 56. Kxh2 Qxf2+ $19) 53... Qd2+ {[%emt 0:02:08]} 54. Kf1 {[%emt 0:01:11]} Qd3+ {[%emt 0:04:19]} 55. Kf2 {[%emt 0:00:34]} Qd2+ {[%emt 0:01:15]} 56. Kf1 $1 {[%emt 0:00:38]} ({Don't go for} 56. Qe2 $2 Qxa5 57. Ra6 Qb4 $19) 56... Rg8 {[%emt 0:00:03]} 57. Rb7 {[%emt 0:02:46][%csl LRd7,LRe6]} ({Don't play} 57. Qe2 Qxa5 58. Qh5+ Kg7 59. Qg5+ Kf7 60. Qh5+ Kg7 61. Qg5+ Kf7 62. Qh5+ Ke7 63. Qh7+ Kd6 64. Rxc6+ Kxc6 $17) 57... Qd1+ {[%emt 0:03:29]} 58. Kf2 {[%emt 0:00:32]} Qd2+ {[%emt 0:00:35]} 59. Kf1 {[%emt 0:00:17]} Qd1+ {[%emt 0:01:45]} 60. Kf2 {[%emt 0:00:05]} Qd2+ {[%emt 0:00:27] Black escapes into a draw.  Weighted Error Value: White=0.08 (flawless) /Black=0.07 (flawless)} 1/2-1/2

[Event "Frauenbundesliga 2021-22"]
[Site "Germany"]
[Date "2022.05.28"]
[Round "10.30"]
[White "Atalik, Ekaterina"]
[Black "Heinemann, Josefine"]
[Result "1/2-1/2"]
[ECO "D40"]
[WhiteElo "2414"]
[BlackElo "2300"]
[Annotator "TA"]
[PlyCount "152"]
[EventDate "2021.11.26"]
[EventType "team-tourn"]
[EventCountry "GER"]
[SourceTitle "playchess.com"]
[Source "ChessBase"]
[SourceQuality "1"]
[WhiteTeam "Schwaebisch Hall"]
[BlackTeam "Baden-Baden"]
[TimeControl "40/5400+30:1800+30"]

{[%evp 25,152,22,27,12,12,12,14,29,32,24,29,24,70,38,39,29,48,15,16,17,20,13,19,13,27,8,12,14,23,5,11,0,36,39,35,17,33,37,37,34,39,34,43,36,36,32,36,36,47,47,89,54,127,127,127,127,127,82,54,54,106,68,158,146,225,207,198,150,300,300,277,131,132,0,237,43,39,58,173,142,140,25,37,0,0,0,0,0,0,0,0,0,0,0,0,0,0,0,0,0,0,0,0,0,0,0,0,0,0,0,0,0,0,0,0,0,0,0,0,0,0,0,0,0,0,0,0,0,0]} 1. Nf3 {[%emt 1:31:00]} d5 {[%emt 0:00:13]} 2. d4 {[%emt 0:00:00]} Nf6 {[%emt 0:00:07]} 3. c4 {[%emt 0:00:00]} e6 {[%emt 0:00:16]} 4. Nc3 {[%emt 0:00:00]} c5 {[%emt 0:00:23]} 5. e3 {[%emt 0:00:00]} Nc6 {[%emt 0:01:01]} 6. a3 {[%emt 0:00:00]} a6 {[%emt 0:02:01]} 7. dxc5 {[%emt 0:00:00]} Bxc5 {[%emt 0:00:11]} 8. b4 {[%emt 0:00:00]} Ba7 {[%emt 0:01:47]} 9. Bb2 {[%emt 0:00:00]} O-O {[%emt 0:00:43]} 10. Qc2 {[%emt 0:00:00]} Qe7 {[%emt 0:03:12]} 11. Rd1 {[%emt 0:00:00]} Rd8 {[%emt 0:04:24]} 12. Be2 {[%emt 0:00:00]} dxc4 {[%emt 0:05:33]} 13. Rxd8+ {[%emt 0:00:00]} Nxd8 {[%emt 0:01:38]} 14. Ne4 {[%emt 0:00:00] D40: Queen's Gambit Declined: Semi-Tarrasch with 5 e3.} Nxe4 {[%emt 0:04:17]} 15. Qxe4 {[%emt 0:00:00]} f5 {[%emt 0:00:24]} 16. Qxc4 {[%emt 0:00:00]} Bd7 {[%emt 0:01:39] [#]} 17. Qb3 $146 {[%emt 0:00:00][%cal Og2g4]} ({Predecessor:} 17. Ne5 Bb5 18. Qc3 Ba4 19. O-O Bb8 20. Bf3 Bxe5 21. Qxe5 Nc6 22. Qf4 Rd8 23. e4 {½-½ (66) Bieronski,W (2219)-Villarreal,S (1800) IECC email 2001}) 17... Bc6 {[%emt 0:05:38]} 18. O-O {[%emt 0:00:00]} Bd5 {[%emt 0:01:28]} (18... Rc8 $11 {feels stronger.}) 19. Qc3 {[%emt 0:00:00]} Nc6 {[%emt 0:00:25]} 20. Rd1 {[%emt 0:00:00]} Rd8 {[%emt 0:04:44]} 21. Bc4 {[%emt 0:00:00]} Bxc4 $1 {[%emt 0:01:36]} 22. Rxd8+ {[%emt 0:00:00]} Nxd8 {[%emt 0:00:07]} 23. Qxc4 {[%emt 0:00:00]} Qd7 {[%emt 0:03:50]} 24. Qb3 {[%emt 0:00:00]} (24. Kf1 {seems wilder.} Nc6 25. Ke2 b5 26. Qb3) 24... Nc6 {[%emt 0:04:18]} 25. h4 {[%emt 0:00:00]} h6 {[%emt 0:03:56]} 26. h5 {[%emt 0:00:00]} Bb8 {[%emt 0:04:39]} 27. g3 {[%emt 0:00:00]} (27. Nh4 {feels hotter.} Ne7 28. Ng6 Bd6 29. Qc2) 27... Kh7 {[%emt 0:04:48]} 28. Nh4 {[%emt 0:00:00]} Bc7 {[%emt 0:05:58]} 29. Ng6 {[%emt 0:00:00]} Kg8 {[%emt 0:00:23] Inhibits Nf8.} 30. Qc4 {[%emt 0:00:00]} Ne7 {[%emt 0:05:58]} 31. Qd4 {[%emt 0:00:00][%csl Gb2][%cal Rd4g7] [#]} Nd5 $1 {[%emt 0:00:49]} 32. e4 {[%emt 0:00:00]} fxe4 {[%emt 0:02:44]} 33. Qxe4 $40 {[%emt 0:00:00][%mdl 128] White is up to no good.} Qf7 {[%emt 0:01:52]} 34. Kg2 {[%emt 0:01:02]} Bb6 {[%emt 0:04:37]} 35. Bd4 {[%emt 0:02:43] Active counter play!} Bxd4 {[%emt 0:03:59]} 36. Qxd4 $14 {[%emt 0:00:04][%mdl 4096] Endgame KQN-KQN} Qd7 {[%emt 0:03:54]} 37. Qe5 {[%emt 0:02:30]} Nc7 $1 {[%emt 0:02:42]} 38. Kh2 {[%emt 0:01:57]} b5 {[%emt 0:07:48]} (38... b6 $14) 39. Qc5 $16 {[%emt 0:03:18] White threatens Qf8+ and mate.} Qd8 {[%emt 0:00:48] Inhibits Qf8+.} 40. Qb6 {[%emt 0:03:09]} Kh7 {[%emt 0:03:17]} 41. Nf4 {[%emt 0:34:07]} Qd7 {[%emt 0:03:34]} 42. Qb8 {[%emt 0:00:00]} Qf7 {[%emt 0:06:14]} (42... Ne8 $14) 43. Kg2 {[%emt 0:00:00]} Ne8 {[%emt 0:04:19]} ({Better is} 43... Qd7 $1 $14) 44. Ng6 {[%emt 0:00:00]} Kg8 {[%emt 0:01:25]} (44... Qg8 $16 45. g4 Qf7) 45. Qc8 $18 {[%emt 0:00:00] Strongly threatening Ne5.} e5 {[%emt 0:03:37]} 46. Qc6 {[%emt 0:00:00]} (46. Qxa6 Qd5+ 47. Kh2 Qa2) ({White should try} 46. Kg1 $18) 46... Nf6 {[%emt 0:02:25] [#]} (46... Kh7 $16 {keeps fighting.}) 47. Qa8+ $1 {[%emt 0:00:00]} (47. Qxa6 Qe8 48. Qd6 Qa8+ 49. Kh2 Kh7 $16) (47. Nxe5 Qxh5 48. Nf3 Qd5 49. Qxa6 Ne4 $16) 47... Ne8 {[%emt 0:00:22]} 48. Qe4 {[%emt 0:01:24]} ({Don't play} 48. Qxa6 $6 Qd5+ 49. Kh2 Qf3 $16) (48. Nxe5 $18 {is the precise move to win.} Qe6 49. Ng6) 48... Nf6 $16 {[%emt 0:02:57]} 49. Qa8+ {[%emt 0:00:41]} (49. Qxe5 $16 Kh7 50. Qf5 Qb7+ 51. f3) 49... Ne8 $1 $18 {[%emt 0:00:48]} 50. Qf3 $2 {[%emt 0:00:55]} ({Much less strong is} 50. Qxa6 $6 Qd5+ 51. Kh2 Qf3) (50. Nxe5 $18 Qe6 51. Ng6) 50... Nf6 $1 $14 {[%emt 0:04:45]} 51. Nxe5 {[%emt 0:00:14]} Qe6 {[%emt 0:00:44]} ({Black should play} 51... Qxh5 $14 52. Qxh5 Nxh5) 52. Ng6 {[%emt 0:01:06]} Qe8 {[%emt 0:01:42] Inhibits Qa8.} 53. Qb3+ {[%emt 0:00:59]} (53. g4 $16) 53... Kh7 $11 {[%emt 0:00:09]} 54. Qd3 {[%emt 0:01:02][%cal Og3g4]} (54. Qe6 {keeps more tension.} Qa8+ 55. Kg1 Qf3 56. Nf8+) 54... Nxh5 {[%emt 0:02:07] The position is equal.} 55. Ne7+ {[%emt 0:00:20]} Kh8 $1 {[%emt 0:00:05]} 56. Nd5 {[%emt 0:00:50]} Qe5 {[%emt 0:01:11] Prevents Qf5.} 57. Qf3 {[%emt 0:00:44]} Kh7 {[%emt 0:01:17]} 58. Qd3+ {[%emt 0:00:24]} Kh8 {[%emt 0:00:05]} 59. Qf3 {[%emt 0:00:34]} Kh7 {[%emt 0:00:03]} 60. Qf7 {[%emt 0:00:18]} Nf6 {[%emt 0:03:31]} 61. Nxf6+ {[%emt 0:00:05]} Qxf6 {[%emt 0:00:06]} 62. Qxf6 {[%emt 0:00:08]} gxf6 {[%emt 0:00:03] KP-KP} 63. Kf3 {[%emt 0:00:05]} Kg6 {[%emt 0:00:05]} 64. Kf4 {[%emt 0:00:50] Black must now prevent g4.} f5 {[%emt 0:00:30]} 65. f3 {[%emt 0:01:04][%cal Bf2f3,Bf3g4][%mdl 32]} h5 {[%emt 0:00:40]} 66. g4 $1 {[%emt 0:01:06]} ({Avoid the trap} 66. Ke5 $2 Kg5 67. Kd4 f4 68. gxf4+ Kxf4 $19) 66... fxg4 {[%emt 0:00:18]} 67. fxg4 {[%emt 0:00:05] K3P-K3P} h4 {[%emt 0:00:20]} 68. Ke4 {[%emt 0:00:33]} Kg5 {[%emt 0:01:32]} 69. Kf3 {[%emt 0:00:04]} h3 {[%emt 0:00:02]} 70. Kg3 {[%emt 0:00:04]} h2 $1 {[%emt 0:00:02]} 71. Kxh2 {[%emt 0:00:05] Kg3 would kill now.} Kxg4 {[%emt 0:00:02] KPP-KPP} 72. Kg2 {[%emt 0:00:06]} Kf4 {[%emt 0:00:03]} 73. Kf2 {[%emt 0:00:06]} Ke4 {[%emt 0:00:03]} 74. Ke2 $1 {[%emt 0:00:05]} Kd4 {[%emt 0:00:03]} 75. Kd2 $1 {[%emt 0:00:05]} Kc4 {[%emt 0:00:03] ( -> ...Kb3)} 76. Kc2 $1 {[%emt 0:00:04]} Kd4 {[%emt 0:00:02] Weighted Error Value: White=0.29 (precise) /Black=0.14 (very precise)} 1/2-1/2

[Event "Frauenbundesliga 2021-22"]
[Site "Germany"]
[Date "2022.05.29"]
[Round "11.1"]
[White "Kashlinskaya, Alina"]
[Black "Klek, Hanna Marie"]
[Result "1-0"]
[ECO "C84"]
[WhiteElo "2498"]
[BlackElo "2362"]
[Annotator "TA"]
[PlyCount "83"]
[EventDate "2021.11.26"]
[EventType "team-tourn"]
[EventCountry "GER"]
[SourceTitle "playchess.com"]
[Source "ChessBase"]
[SourceQuality "1"]
[WhiteTeam "Schwaebisch Hall"]
[BlackTeam "Deizisau"]
[TimeControl "40/5400+30:1800+30"]

{[%evp 15,83,9,29,23,27,29,18,25,31,21,22,28,54,13,65,52,67,63,72,50,75,26,25,27,38,25,52,27,35,21,124,130,156,156,178,179,172,173,172,172,166,174,163,178,175,173,345,344,347,356,488,487,473,464,577,577,562,565,556,546,849,844,836,832,1152,1110,1120,1069,1288,1288]} 1. e4 {[%emt 0:00:04]} e5 {[%emt 0:00:06]} 2. Nf3 {[%emt 0:00:07]} Nc6 {[%emt 0:00:04]} 3. Bb5 {[%emt 0:00:12]} a6 {[%emt 0:00:05]} 4. Ba4 {[%emt 0:00:07]} Nf6 {[%emt 0:00:05]} 5. O-O {[%emt 0:00:12]} Be7 {[%emt 0:00:05]} 6. d3 {[%emt 0:00:16]} b5 {[%emt 0:00:11]} 7. Bb3 {[%emt 0:00:05]} d6 {[%emt 0:00:03]} 8. a4 {[%emt 0:00:14]} Bd7 {[%emt 0:00:37]} 9. c3 {[%emt 0:00:15] C84: Closed Ruy Lopez: Unusual White 6th moves.} O-O {[%emt 0:01:40]} 10. Bc2 {[%emt 0:00:11]} b4 {[%emt 0:00:51]} 11. Re1 {[%emt 0:00:10] The position is equal.} Bg4 {[%emt 0:02:30]} 12. h3 {[%emt 0:01:14]} Bh5 {[%emt 0:01:27]} 13. Nbd2 {[%emt 0:15:13][%cal Bb1d2,Bd2f1,Bf1g3,Bg3e4][%mdl 32] [#]} a5 $146 {[%emt 0:11:31]} ({Predecessor:} 13... bxc3 14. bxc3 d5 15. Nf1 Bxf3 16. Qxf3 d4 17. Bd2 Rb8 18. Reb1 Qd7 19. a5 dxc3 20. Bxc3 {½-½ (42) Rigo,Z (2378)-Banusz,T (2604) Slovakia 2016}) 14. Nf1 {[%emt 0:12:48]} Re8 {[%emt 0:01:52]} ({Black should play} 14... bxc3 $11 15. bxc3 d5) 15. Ng3 $14 {[%emt 0:00:31]} Bg6 {[%emt 0:00:55]} 16. Bb3 {[%emt 0:07:39]} bxc3 {[%emt 0:11:11]} 17. bxc3 {[%emt 0:00:22]} d5 {[%emt 0:04:54]} 18. Bg5 {[%emt 0:04:35]} (18. Qc2 $16) 18... dxe4 $11 {[%emt 0:03:11]} 19. Bxf6 {[%emt 0:03:08]} Bxf6 {[%emt 0:09:05]} 20. Nxe4 {[%emt 0:00:27]} Nb8 {[%emt 0:04:41]} 21. Bc4 {[%emt 0:08:59]} c6 {[%emt 0:08:24]} 22. Qb3 {[%emt 0:03:11]} Na6 {[%emt 0:02:32] Black is on the road to losing.} (22... Nd7 $11) 23. Qb7 $16 {[%emt 0:07:33][%csl LRa6,LRc6]} Qc8 {[%emt 0:00:24]} 24. Rab1 {[%emt 0:02:56][%cal Ba1b1,Bb1b7,Bb7c7][%mdl 32] 0x0.001259e0a2d6dp-1022s more active pieces.} Qxb7 {[%emt 0:02:04]} 25. Rxb7 {[%emt 0:00:08]} Bxe4 {[%emt 0:00:25]} 26. Rxe4 {[%emt 0:06:14]} ({Inferior is} 26. Bxf7+ Kf8 27. Rxe4 (27. dxe4 Reb8 $11) 27... Reb8 28. Rxb8+ Rxb8 $11) 26... Nc5 {[%emt 0:09:44]} 27. Bxf7+ {[%emt 0:01:59]} Kf8 {[%emt 0:00:14]} 28. Bxe8 {[%emt 0:00:16]} Kxe8 {[%emt 0:00:19]} 29. Rc7 {[%emt 0:01:24] [#] Black must now prevent Rc4.} Nxe4 {[%emt 0:00:08]} 30. dxe4 $18 {[%emt 0:00:04][%mdl 4096] Endgame KRB-KRN} Ra6 $2 {[%emt 0:00:14]} (30... Rd8 31. Kh2 (31. Rxc6 Rd1+ 32. Kh2 Ra1 $16) 31... Rd1) 31. g4 {[%emt 0:01:35]} h6 {[%emt 0:00:41]} 32. h4 {[%emt 0:03:44][%cal Bh3h4,Bh4h5][%mdl 32]} g5 {[%emt 0:04:28]} 33. h5 {[%emt 0:00:30] White is clearly winning.} Kf8 {[%emt 0:02:25]} 34. Nd2 {[%emt 0:01:47]} Rb6 {[%emt 0:08:56]} 35. Nc4 {[%emt 0:00:28][%csl LRa5,LRb6]} Rb1+ {[%emt 0:00:06]} 36. Kg2 {[%emt 0:00:07]} Ra1 {[%emt 0:00:07]} 37. Rxc6 {[%emt 0:02:05]} Bd8 {[%emt 0:00:07]} 38. Rxh6 {[%emt 0:06:38] [#] Hoping for Rh8+.} Rxa4 {[%emt 0:00:10]} 39. Rc6 {[%emt 0:01:42]} Kg7 {[%emt 0:01:18]} 40. Kf3 {[%emt 0:02:18]} Ra1 {[%emt 0:02:12]} 41. Rg6+ {[%emt 0:35:26]} Kh7 {[%emt 0:30:26]} 42. Rd6 {[%emt 0:00:15] Weighted Error Value: White=0.05 (flawless) /Black=0.31} 1-0